bitfinex/quotes_BTCUSD_20250423
["timestamp","ask_amount","ask_price","bid_price","bid_amount"]
[1745372979344,0.01078167,92750.0,92743.0,0.01078248]
[1745372979552,0.01078143,92752.0,92745.0,0.01078225]
[1745372979767,0.01078178,92749.0,92739.0,0.43565926]
[1745372979997,0.01078155,92751.0,92743.0,0.01078248]
[1745372980204,0.01078178,92749.0,92742.0,0.0107826]
[1745372980428,0.01078167,92750.0,92743.0,0.01078248]
[1745372980634,0.01078178,92749.0,92743.0,0.01078248]
[1745372980828,0.01078178,92749.0,92741.0,0.01078271]
[1745372981034,0.01078155,92751.0,92744.0,0.01078236]
[1745372981234,0.01078155,92751.0,92743.0,0.01078248]
[1745372981440,0.006,92749.0,92745.0,0.01078225]
[1745372981681,0.006,92749.0,92744.0,0.01078236]
[1745372981881,0.006,92749.0,92745.0,0.01078225]
[1745372982183,0.006,92749.0,92743.0,0.01078248]
[1745372982602,0.01078178,92749.0,92738.0,0.2264424]
[1745372982819,0.01078201,92747.0,92739.0,0.22000157]
[1745372983029,0.01293295,92746.0,92739.0,0.22000157]
[1745372984021,0.00215082,92746.0,92739.0,0.01078294]
[1745372984427,0.00715082,92746.0,92739.0,0.01078294]
[1745372984628,0.01793295,92746.0,92739.0,0.01078294]
[1745372984858,0.01793295,92746.0,92738.0,0.01078306]
[1745372985090,0.01793295,92746.0,92739.0,0.01078294]
[1745372985331,0.0107826,92742.0,92736.0,0.22000157]
[1745372985543,0.01078283,92740.0,92736.0,0.22000157]
[1745372986130,0.22643574,92742.0,92736.0,0.22000157]
[1745372986359,0.01078271,92741.0,92736.0,0.22000157]
[1745372986572,0.0107826,92742.0,92736.0,0.22000157]
[1745372986773,0.005,92740.0,92736.0,0.22000157]
[1745372986983,0.009,92740.0,92734.0,0.01078353]
[1745372987187,0.01078318,92737.0,92730.0,0.22000157]
[1745372987420,0.01078306,92738.0,92730.0,0.22000157]
[1745372987538,0.01078306,92738.0,92730.0,0.23078556]
[1745372987743,0.01293376,92739.0,92730.0,0.23078556]
[1745372987975,0.01293376,92739.0,92732.0,0.01078376]
[1745372988178,0.01693365,92740.0,92733.0,0.01078364]
[1745372988437,0.01078294,92739.0,92732.0,0.01078376]
[1745372988597,0.01078236,92744.0,92732.0,0.22645738]
[1745372988799,0.01078248,92743.0,92732.0,0.22645738]
[1745372989006,0.009,92741.0,92732.0,0.22645738]
[1745372989202,0.01115082,92741.0,92735.0,0.01078341]
[1745372989463,0.009,92741.0,92735.0,0.01078341]
[1745372989666,0.003,92739.0,92733.0,0.01078364]
[1745372990202,0.003,92739.0,92734.0,0.01078353]
[1745372990820,0.003,92739.0,92733.0,0.01078364]
[1745372991307,0.01078283,92740.0,92734.0,0.01078353]
[1745372991538,0.00215082,92739.0,92733.0,0.01078364]
[1745372991749,0.01078318,92737.0,92730.0,0.01078399]
[1745372991944,0.01293376,92739.0,92731.0,0.01078388]
[1745372991945,0.01078306,92738.0,92731.0,0.01078388]
[1745372992150,0.01593376,92739.0,92732.0,0.01078376]
[1745372992510,0.01993376,92739.0,92732.0,0.01078376]
[1745372993050,0.01293376,92739.0,92732.0,0.01078376]
[1745372993264,0.006,92738.0,92732.0,0.01078376]
[1745372993617,0.003,92738.0,92733.0,0.01078364]
[1745372993875,0.01378306,92738.0,92732.0,0.001]
[1745372994085,0.003,92738.0,92732.0,0.001]
[1745372994288,0.003,92738.0,92732.0,0.01178376]
[1745372994486,0.01593376,92739.0,92732.0,0.01178376]
[1745372994842,0.00815082,92739.0,92733.0,0.01078364]
[1745372995554,0.003,92738.0,92733.0,0.01078364]
[1745372995983,0.007,92738.0,92734.0,0.22645339]
[1745372996188,0.007,92738.0,92734.0,0.01078353]
[1745372996976,0.003,92738.0,92734.0,0.01078353]
[1745372997184,0.007,92738.0,92734.0,0.01078353]
[1745372997797,0.007,92738.0,92733.0,0.01078364]
[1745372998217,0.004,92738.0,92734.0,0.01078353]
[1745372998433,0.007,92738.0,92734.0,0.01078353]
[1745372998885,0.003,92738.0,92734.0,0.01078353]
[1745372999125,0.007,92738.0,92736.0,0.21566597]
[1745372999313,0.004,92738.0,92736.0,0.21566597]
[1745372999658,0.00215082,92745.0,92738.0,0.01078306]
[1745373000086,0.01293307,92745.0,92738.0,0.01078306]
[1745373000944,0.01078236,92744.0,92737.0,0.01078318]
[1745373001344,0.01078236,92744.0,92736.0,0.22000157]
[1745373001663,0.0107826,92742.0,92736.0,0.22000157]
[1745373002064,0.004,92738.0,92736.0,0.22000157]
[1745373002258,0.0107826,92742.0,92736.0,0.22000157]
[1745373003087,0.01078248,92743.0,92736.0,0.23078486]
[1745373003345,0.004,92738.0,92736.0,0.22000157]
[1745373005118,0.01078294,92739.0,92736.0,0.22000157]
[1745373005329,0.01078283,92740.0,92733.0,0.01078364]
[1745373005548,0.004,92738.0,92732.0,0.01078376]
[1745373005870,0.01078318,92737.0,92729.0,0.01078411]
[1745373006079,0.01478306,92738.0,92731.0,0.01078388]
[1745373006500,0.01978306,92738.0,92731.0,0.01078388]
[1745373006703,0.23144511,92738.0,92730.0,0.01078399]
[1745373006935,0.01078306,92738.0,92731.0,0.01078388]
[1745373007150,0.01078306,92738.0,92728.0,0.22000157]
[1745373007151,0.21568212,92730.0,92728.0,0.22000157]
[1745373007362,0.01078388,92731.0,92729.0,0.001]
[1745373007574,0.01078364,92733.0,92729.0,0.001]
[1745373007782,0.01078376,92732.0,92729.0,0.001]
[1745373008224,0.01078376,92732.0,92727.0,0.03075278]
[1745373008887,0.01278364,92733.0,92727.0,0.03075278]
[1745373009144,0.22646408,92730.0,92727.0,0.03075278]
[1745373009359,0.21568458,92728.0,92727.0,0.03175278]
[1745373009591,0.21468458,92728.0,92727.0,0.03175278]
[1745373010272,0.21468458,92728.0,92727.0,0.03275278]
[1745373010737,0.21468458,92728.0,92727.0,0.03175278]
[1745373011170,0.22268458,92728.0,92727.0,0.03175278]
[1745373011625,0.22268458,92728.0,92727.0,0.03075278]
[1745373012745,0.22868458,92728.0,92727.0,0.03075278]
[1745373012895,0.22968458,92728.0,92727.0,0.03075278]
[1745373013482,0.015,92728.0,92727.0,0.03075278]
[1745373014352,0.015,92728.0,92727.0,0.70454178]
[1745373014981,0.015,92728.0,92727.0,0.45229478]
[1745373015197,0.009,92728.0,92727.0,0.45229478]
[1745373015419,0.011,92728.0,92727.0,0.45329478]
[1745373015641,0.011,92728.0,92727.0,0.28429478]
[1745373015850,0.009,92728.0,92727.0,0.19962078]
[1745373016062,0.001,92728.0,92727.0,0.19962078]
[1745373016268,0.003,92728.0,92727.0,0.19962078]
[1745373016477,0.003,92728.0,92727.0,0.20062078]
[1745373016686,0.005,92728.0,92727.0,0.20062078]
[1745373016889,0.003,92728.0,92727.0,0.19962078]
[1745373017095,0.007,92728.0,92727.0,0.20062078]
[1745373017536,0.007,92728.0,92727.0,0.35404878]
[1745373017735,0.007,92728.0,92727.0,0.25404878]
[1745373018125,0.007,92728.0,92727.0,0.23234878]
[1745373018954,0.007,92728.0,92727.0,0.18389078]
[1745373019173,0.007,92728.0,92727.0,0.03175278]
[1745373019400,0.007,92728.0,92727.0,0.20819078]
[1745373020539,0.007,92728.0,92727.0,0.03175278]
[1745373021617,0.007,92728.0,92727.0,0.18359078]
[1745373021837,0.007,92728.0,92727.0,0.03175278]
[1745373022186,0.007,92728.0,92727.0,0.55476078]
[1745373022388,0.007,92728.0,92727.0,0.20713878]
[1745373022596,0.007,92728.0,92727.0,0.03175278]
[1745373022801,0.22268458,92728.0,92727.0,0.03175278]
[1745373023043,0.1006,92728.0,92727.0,0.03175278]
[1745373031576,0.10615173,92728.0,92727.0,0.03175278]
[1745373031926,0.1006,92728.0,92727.0,0.03175278]
[1745373034159,0.31628458,92728.0,92727.0,0.03175278]
[1745373035415,0.1006,92728.0,92727.0,0.03175278]
[1745373035643,0.0526,92728.0,92727.0,0.03175278]
[1745373041977,0.007,92728.0,92727.0,0.03175278]
[1745373042175,0.006,92728.0,92727.0,0.03175278]
[1745373042342,0.007,92728.0,92727.0,0.03175278]
[1745373046671,0.055,92728.0,92727.0,0.03175278]
[1745373048094,0.007,92728.0,92727.0,0.03175278]
[1745373050458,0.20985387,92728.0,92727.0,0.03175278]
[1745373051081,0.20770305,92728.0,92727.0,0.03175278]
[1745373051289,0.20985387,92728.0,92727.0,0.03175278]
[1745373051497,0.20770305,92728.0,92727.0,0.03175278]
[1745373052593,0.20985387,92728.0,92727.0,0.03175278]
[1745373053022,0.20770305,92728.0,92727.0,0.03175278]
[1745373053438,0.20985387,92728.0,92727.0,0.03175278]
[1745373053853,0.20770305,92728.0,92727.0,0.03175278]
[1745373060712,0.007,92728.0,92727.0,0.03175278]
[1745373063260,0.20985387,92728.0,92727.0,0.0014247]
[1745373064215,0.20785387,92728.0,92727.0,0.0014247]
[1745373064429,0.20885387,92728.0,92727.0,0.0004247]
[1745373064898,0.21285387,92728.0,92727.0,0.0004247]
[1745373065112,0.21070305,92728.0,92727.0,0.0004247]
[1745373065584,0.20570305,92728.0,92727.0,0.0004247]
[1745373065808,0.0511,92728.0,92727.0,0.0004247]
[1745373066027,0.011,92728.0,92727.0,0.0004247]
[1745373066466,0.007,92728.0,92727.0,0.0004247]
[1745373066687,0.001,92728.0,92727.0,0.0004247]
[1745373066895,0.013,92728.0,92727.0,0.0004247]
[1745373067332,0.007,92728.0,92727.0,0.0004247]
[1745373067562,0.012,92728.0,92727.0,0.0004247]
[1745373068824,0.018,92728.0,92727.0,0.0004247]
[1745373069232,0.012,92728.0,92727.0,0.0004247]
[1745373069673,0.018,92728.0,92727.0,0.0004247]
[1745373070156,0.001,92728.0,92727.0,0.0004247]
[1745373070374,0.011,92728.0,92727.0,0.0004247]
[1745373070585,0.006,92728.0,92726.0,0.08063918]
[1745373070800,0.006,92728.0,92726.0,0.00014025]
[1745373071021,0.011,92728.0,92726.0,0.00014025]
[1745373071683,0.001,92728.0,92726.0,0.03828762]
[1745373072098,0.012,92728.0,92726.0,0.03828762]
[1745373072481,0.006,92728.0,92726.0,0.03828762]
[1745373072915,0.012,92728.0,92726.0,0.03828762]
[1745373073342,0.013,92728.0,92726.0,0.03828762]
[1745373075506,0.22868503,92728.0,92726.0,0.03828762]
[1745373075719,0.0484,92727.0,92726.0,0.03828762]
[1745373077441,0.05055082,92727.0,92726.0,0.03828762]
[1745373077689,0.20965387,92727.0,92726.0,0.03828762]
[1745373078116,0.1052,92727.0,92726.0,0.03828762]
[1745373078679,0.11598434,92727.0,92718.0,0.01078539]
[1745373078882,0.01078469,92724.0,92717.0,0.02379282]
[1745373079361,0.01078492,92722.0,92717.0,0.02379282]
[1745373079887,0.01078504,92721.0,92715.0,0.0004246]
[1745373080104,0.01078504,92721.0,92715.0,0.04886273]
[1745373080549,0.01078504,92721.0,92717.0,0.001]
[1745373080751,0.01078504,92721.0,92715.0,0.03807699]
[1745373081156,0.01378504,92721.0,92715.0,0.03907699]
[1745373081361,0.01378504,92721.0,92715.0,0.04886273]
[1745373081571,0.01378504,92721.0,92715.0,0.03807699]
[1745373081572,0.01078527,92719.0,92715.0,0.03807699]
[1745373081778,0.01078527,92719.0,92717.0,0.001]
[1745373082180,0.01678504,92721.0,92717.0,0.001]
[1745373082639,0.01378504,92721.0,92717.0,0.001]
[1745373082989,0.003,92719.0,92717.0,0.001]
[1745373083392,0.003,92719.0,92715.0,0.04986273]
[1745373083598,0.003,92719.0,92715.0,0.04886273]
[1745373083797,0.003,92719.0,92715.0,0.03807699]
[1745373084013,0.01078504,92721.0,92715.0,0.04886273]
[1745373084219,0.21571249,92716.0,92715.0,0.03807699]
[1745373084832,0.21471249,92716.0,92715.0,0.03807699]
[1745373085923,0.21971249,92716.0,92715.0,0.03807699]
[1745373086672,0.22471249,92716.0,92715.0,0.03807699]
[1745373088143,0.01,92716.0,92715.0,0.21591999]
[1745373088350,0.01,92716.0,92715.0,0.25379181]
[1745373089184,0.01,92716.0,92715.0,0.24379181]
[1745373093659,0.0575,92716.0,92715.0,0.02807699]
[1745373093863,0.0575,92716.0,92714.0,0.0004246]
[1745373094861,0.26821378,92716.0,92714.0,0.0004246]
[1745373095011,0.27321378,92716.0,92714.0,0.0004246]
[1745373095221,0.26821378,92716.0,92714.0,0.0004246]
[1745373095970,0.26821378,92716.0,92714.0,0.03704751]
[1745373096503,0.0525,92716.0,92714.0,0.03704751]
[1745373096710,0.0575,92716.0,92714.0,0.03704751]
[1745373097325,0.27321433,92716.0,92714.0,0.03704751]
[1745373097940,0.0575,92716.0,92714.0,0.03704751]
[1745373098152,0.2732126,92716.0,92714.0,0.03704751]
[1745373099122,0.0575,92716.0,92714.0,0.03704751]
[1745373102458,0.048,92715.0,92714.0,0.03704751]
[1745373103106,0.053,92715.0,92714.0,0.03704751]
[1745373103771,0.058,92715.0,92714.0,0.03704751]
[1745373110543,0.06015082,92715.0,92714.0,0.03704751]
[1745373110752,0.16845387,92715.0,92714.0,0.03704751]
[1745373114001,0.16630305,92715.0,92714.0,0.03704751]
[1745373120700,0.16845387,92715.0,92714.0,0.03704751]
[1745373121528,0.16630305,92715.0,92714.0,0.03704751]
[1745373122297,0.16845387,92715.0,92714.0,0.03704751]
[1745373123884,0.16845387,92715.0,92701.0,0.0004248]
[1745373123885,0.01078702,92704.0,92701.0,0.0004248]
[1745373124306,0.42004812,92702.0,92701.0,0.0004248]
[1745373125703,0.42804812,92702.0,92701.0,0.0004248]
[1745373126693,0.83944812,92702.0,92700.0,0.00264773]
[1745373126915,0.20585387,92701.0,92700.0,0.00264773]
[1745373127598,0.32561387,92701.0,92700.0,0.00264773]
[1745373127828,0.32346305,92701.0,92700.0,0.00264773]
[1745373128455,0.33046305,92701.0,92700.0,0.00264773]
[1745373128695,0.33846305,92701.0,92700.0,0.00264773]
[1745373129352,0.34657443,92701.0,92700.0,0.00264773]
[1745373130432,0.34661443,92701.0,92700.0,0.00264773]
[1745373131147,0.22681443,92701.0,92700.0,0.00264773]
[1745373131359,0.44471265,92701.0,92700.0,0.00264773]
[1745373131616,0.44256183,92701.0,92700.0,0.00264773]
[1745373131856,0.44256183,92701.0,92700.0,0.21839746]
[1745373131857,0.22681443,92701.0,92700.0,0.21839746]
[1745373132076,0.015,92701.0,92700.0,0.21839746]
[1745373132332,0.015,92701.0,92700.0,0.22055485]
[1745373132552,0.015,92701.0,92700.0,0.21839746]
[1745373132773,0.015,92701.0,92700.0,0.22055467]
[1745373133272,0.008,92701.0,92700.0,0.23609552]
[1745373133485,0.013,92701.0,92700.0,0.23393831]
[1745373133712,0.005,92701.0,92700.0,0.23393831]
[1745373133958,0.005,92701.0,92700.0,0.62407031]
[1745373134137,0.01,92701.0,92700.0,0.23393831]
[1745373134352,0.005,92701.0,92700.0,0.23393831]
[1745373134652,0.002,92715.0,92714.0,0.21571715]
[1745373136214,0.009,92715.0,92714.0,0.21571715]
[1745373136833,0.017,92715.0,92714.0,0.21571715]
[1745373137887,0.009,92715.0,92714.0,0.21571715]
[1745373138108,0.014,92715.0,92714.0,0.21571715]
[1745373138556,0.009,92715.0,92714.0,0.21571715]
[1745373139194,0.002,92715.0,92714.0,0.21571715]
[1745373139434,0.008,92715.0,92714.0,0.001]
[1745373139641,0.008,92715.0,92714.0,0.00436588]
[1745373140078,0.013,92715.0,92714.0,0.00436588]
[1745373140287,0.013,92715.0,92714.0,0.001]
[1745373142433,0.013,92715.0,92714.0,0.00436592]
[1745373144612,0.013,92715.0,92712.0,0.2157218]
[1745373144829,0.013,92715.0,92713.0,0.21571946]
[1745373145056,0.013,92715.0,92714.0,0.00215706]
[1745373145532,0.013,92715.0,92713.0,0.21787632]
[1745373146225,0.002,92715.0,92713.0,0.21571946]
[1745373146447,0.007,92715.0,92713.0,0.21571946]
[1745373146679,0.013,92715.0,92713.0,0.21571946]
[1745373146885,0.008,92715.0,92713.0,0.21571946]
[1745373147297,0.013,92715.0,92713.0,0.21571946]
[1745373150516,0.013,92715.0,92714.0,0.00215699]
[1745373150738,0.013,92715.0,92713.0,0.21571946]
[1745373150739,0.013,92715.0,92713.0,0.2178764]
[1745373150947,0.011,92715.0,92713.0,0.21779135]
[1745373151176,0.011,92715.0,92714.0,0.01454085]
[1745373151381,0.011,92715.0,92714.0,0.57854863]
[1745373151622,0.00014015,92727.0,92724.0,0.22647669]
[1745373151826,0.00014015,92727.0,92723.0,0.22648077]
[1745373152478,0.00014015,92727.0,92723.0,0.24734017]
[1745373152908,0.00014015,92727.0,92723.0,0.03164421]
[1745373153114,0.00014015,92727.0,92718.0,0.22649116]
[1745373153341,0.01078446,92726.0,92717.0,0.43570959]
[1745373153553,0.01492449,92727.0,92717.0,0.44649509]
[1745373153786,0.01492449,92727.0,92720.0,0.01078515]
[1745373153787,0.00914015,92727.0,92720.0,0.01078515]
[1745373154004,0.00514015,92727.0,92717.0,0.45312755]
[1745373154219,0.21568923,92726.0,92717.0,0.03135555]
[1745373154438,0.21570697,92719.0,92717.0,0.001]
[1745373154654,0.21570697,92719.0,92703.0,0.01078713]
[1745373154655,0.01078574,92715.0,92703.0,0.01078713]
[1745373154864,0.01078574,92715.0,92709.0,0.22000157]
[1745373155089,0.01078562,92716.0,92709.0,0.22000157]
[1745373155306,0.01078539,92718.0,92709.0,0.25242839]
[1745373155727,0.01078574,92715.0,92709.0,0.25242839]
[1745373155922,0.00978574,92715.0,92709.0,0.03242682]
[1745373156255,0.01078585,92714.0,92706.0,0.01078678]
[1745373156683,0.00978574,92715.0,92707.0,0.01078667]
[1745373157079,0.01178574,92715.0,92707.0,0.01078667]
[1745373157279,0.01078585,92714.0,92706.0,0.01078678]
[1745373157741,0.01178585,92714.0,92706.0,0.03181315]
[1745373157912,0.01178585,92714.0,92705.0,0.0107869]
[1745373158115,0.01178585,92714.0,92707.0,0.001]
[1745373158381,0.01178585,92714.0,92707.0,0.01178667]
[1745373158561,0.001,92714.0,92707.0,0.01178667]
[1745373159013,0.001,92714.0,92708.0,0.01078655]
[1745373159376,0.01078539,92718.0,92708.0,0.01078655]
[1745373159586,0.0107855,92717.0,92708.0,0.23078812]
[1745373159768,0.001,92714.0,92709.0,0.01078643]
[1745373159966,0.001,92714.0,92710.0,0.00336586]
[1745373160167,0.003,92714.0,92710.0,0.00336586]
[1745373160828,0.0117855,92717.0,92711.0,0.00336586]
[1745373161468,0.0107855,92717.0,92711.0,0.00336586]
[1745373161671,0.0127855,92717.0,92712.0,0.00336586]
[1745373162325,0.002,92717.0,92712.0,0.00336586]
[1745373162827,0.002,92714.0,92713.0,0.00336586]
[1745373163458,0.0127855,92717.0,92713.0,0.00336586]
[1745373163664,0.003,92717.0,92713.0,0.00336586]
[1745373163899,0.005,92717.0,92713.0,0.00336586]
[1745373164142,0.002,92717.0,92713.0,0.00336586]
[1745373164379,0.005,92714.0,92713.0,0.00536586]
[1745373164600,0.005,92714.0,92713.0,0.001]
[1745373165034,0.005,92714.0,92713.0,0.002]
[1745373165246,0.003,92714.0,92713.0,0.002]
[1745373165469,0.0534,92714.0,92713.0,0.003]
[1745373165683,0.05555082,92714.0,92713.0,0.00636599]
[1745373165897,0.05255082,92714.0,92713.0,0.00536599]
[1745373166107,0.05255082,92714.0,92713.0,0.00636599]
[1745373166826,0.05255082,92714.0,92713.0,0.00536599]
[1745373167059,0.05555082,92714.0,92713.0,0.00636599]
[1745373167260,0.05555082,92714.0,92713.0,0.01392872]
[1745373171243,0.005,92714.0,92713.0,0.01392872]
[1745373177076,0.00715082,92714.0,92713.0,0.01392872]
[1745373180306,0.21948122,92714.0,92713.0,0.01392872]
[1745373180568,0.31053576,92706.0,92705.0,0.03151805]
[1745373180707,0.2641474,92701.0,92700.0,0.00264773]
[1745373181090,0.37245045,92701.0,92700.0,0.00264773]
[1745373181304,0.83085045,92701.0,92700.0,0.00264773]
[1745373181772,0.82885045,92701.0,92700.0,0.00264773]
[1745373182688,0.95805045,92701.0,92700.0,0.00264773]
[1745373183324,0.96805045,92701.0,92700.0,0.00264773]
[1745373183544,0.84985045,92701.0,92700.0,0.00264773]
[1745373183757,0.7515474,92701.0,92700.0,0.00264773]
[1745373184540,0.85985045,92701.0,92700.0,0.00264773]
[1745373186004,0.9481535,92701.0,92700.0,0.00264773]
[1745373186214,0.82885045,92701.0,92700.0,0.00264773]
[1745373186423,0.83785045,92701.0,92700.0,0.00264773]
[1745373186859,0.26216136,92695.0,92694.0,0.00173836]
[1745373187085,0.78246441,92695.0,92694.0,0.00173836]
[1745373188043,0.79246441,92695.0,92694.0,0.00173836]
[1745373188266,0.80259534,92695.0,92694.0,0.00173836]
[1745373189045,0.21576602,92693.0,92680.0,0.02]
[1745373189278,0.37261989,92693.0,92680.0,0.02]
[1745373189493,0.37046907,92693.0,92680.0,0.02]
[1745373189681,0.21079395,92681.0,92680.0,0.0199524]
[1745373189885,0.32124782,92681.0,92680.0,0.0199524]
[1745373190102,0.22663733,92660.0,92643.0,7e-05]
[1745373190303,0.2158615,92652.0,92643.0,0.02803312]
[1745373190503,0.32631537,92652.0,92643.0,7e-05]
[1745373190714,0.44232455,92652.0,92643.0,7e-05]
[1745373190923,0.48872455,92652.0,92643.0,7e-05]
[1745373191343,0.48872455,92652.0,92651.0,0.002]
[1745373191817,0.50282521,92652.0,92651.0,0.002]
[1745373192518,0.21588014,92644.0,92643.0,7e-05]
[1745373192734,0.32633401,92644.0,92643.0,7e-05]
[1745373192955,0.32418319,92644.0,92643.0,7e-05]
[1745373193397,0.21588713,92641.0,92640.0,0.25]
[1745373193594,0.326341,92641.0,92640.0,0.25]
[1745373193835,0.32419018,92641.0,92640.0,0.25]
[1745373195391,0.74619018,92641.0,92640.0,0.25]
[1745373195620,0.85239018,92641.0,92640.0,0.25]
[1745373199819,0.97059018,92641.0,92640.0,0.25]
[1745373201165,0.75470305,92641.0,92640.0,0.25]
[1745373201619,0.54030305,92641.0,92640.0,0.25]
[1745373201835,0.65850305,92641.0,92640.0,0.25]
[1745373202290,0.432,92641.0,92640.0,0.25]
[1745373202516,0.432,92641.0,92640.0,0.27864009]
[1745373202517,0.02,92641.0,92640.0,0.27864009]
[1745373202973,0.01,92641.0,92640.0,0.27864009]
[1745373203397,0.007,92641.0,92640.0,0.27864009]
[1745373203847,0.008064,92652.0,92651.0,0.21586383]
[1745373204054,0.00010066,92652.0,92651.0,0.21586383]
[1745373205348,0.00510066,92652.0,92651.0,0.21586383]
[1745373205772,0.00510066,92652.0,92651.0,0.21923185]
[1745373205983,0.01010066,92652.0,92651.0,0.21923185]
[1745373206187,0.01410066,92652.0,92651.0,0.22023185]
[1745373206610,0.01010066,92652.0,92651.0,0.21923185]
[1745373207091,0.01410066,92652.0,92651.0,0.22023185]
[1745373207535,0.01410066,92652.0,92651.0,0.21686383]
[1745373207761,0.00010066,92652.0,92651.0,0.21586383]
[1745373207981,0.00410066,92652.0,92651.0,0.21686383]
[1745373208194,0.00910066,92652.0,92651.0,0.21686383]
[1745373208617,0.01410066,92652.0,92651.0,0.21686383]
[1745373209147,0.01410066,92652.0,92651.0,0.33970773]
[1745373209353,0.00215082,92687.0,92680.0,0.21579628]
[1745373209565,0.00099088,92681.0,92678.0,0.2158]
[1745373209956,0.08568292,92680.0,92675.0,0.21580793]
[1745373210198,0.00215082,92679.0,92675.0,0.21580793]
[1745373210831,0.00215082,92679.0,92675.0,0.2435059]
[1745373210979,0.00215082,92679.0,92675.0,0.02769797]
[1745373211196,0.21580327,92677.0,92675.0,0.001]
[1745373211395,0.11045387,92676.0,92675.0,0.001]
[1745373212359,0.01079086,92671.0,92663.0,0.02713583]
[1745373212609,0.00215082,92670.0,92663.0,0.02713583]
[1745373212812,0.00979086,92671.0,92661.0,0.21584039]
[1745373213105,0.01079051,92674.0,92663.0,0.21583411]
[1745373213321,0.004,92676.0,92668.0,0.21582352]
[1745373213538,0.012,92676.0,92675.0,0.001]
[1745373213964,0.00099088,92681.0,92678.0,0.22659098]
[1745373214187,0.00099088,92681.0,92678.0,0.21580094]
[1745373214825,0.00099088,92681.0,92680.0,0.21579628]
[1745373215041,0.00099088,92681.0,92678.0,0.21580094]
[1745373215256,0.00099088,92681.0,92675.0,0.21580561]
[1745373215455,0.01079004,92678.0,92670.0,0.22000157]
[1745373215707,0.00499088,92681.0,92670.0,0.22000157]
[1745373215708,0.009,92676.0,92675.0,0.001]
[1745373216341,0.02078057,92681.0,92670.0,0.44661199]
[1745373216555,0.03078057,92681.0,92675.0,0.001]
[1745373216759,0.01078981,92680.0,92675.0,0.001]
[1745373216992,0.01079004,92678.0,92670.0,0.21581945]
[1745373217214,0.009,92676.0,92675.0,0.001]
[1745373218580,0.01078993,92679.0,92670.0,0.22661053]
[1745373218944,0.002,92678.0,92670.0,0.22661053]
[1745373219551,0.008,92676.0,92670.0,0.22661053]
[1745373219773,0.21583354,92664.0,92646.0,0.01079377]
[1745373219980,0.01079284,92654.0,92650.0,0.22000157]
[1745373220178,0.01079284,92654.0,92646.0,0.01079377]
[1745373220364,0.01079295,92653.0,92645.0,0.01079389]
[1745373220584,0.01079295,92653.0,92644.0,0.23079557]
[1745373220819,0.01079295,92653.0,92644.0,0.22000157]
[1745373221032,0.01079319,92651.0,92644.0,0.24457987]
[1745373221236,0.01079342,92649.0,92644.0,0.24457987]
[1745373221449,0.01079319,92651.0,92644.0,0.24457987]
[1745373221450,0.0107933,92650.0,92644.0,0.24457987]
[1745373221661,0.0107933,92650.0,92644.0,0.24504759]
[1745373221868,0.0107933,92650.0,92644.0,0.02504602]
[1745373222099,0.01079354,92648.0,92644.0,0.02504602]
[1745373222323,0.00879354,92648.0,92644.0,0.02504602]
[1745373222729,0.01079342,92649.0,92644.0,0.02504602]
[1745373222943,0.01079342,92649.0,92644.0,0.02604602]
[1745373223144,0.002,92650.0,92644.0,0.02604602]
[1745373223365,0.0127933,92650.0,92644.0,0.02604602]
[1745373223566,0.0107933,92650.0,92644.0,0.02504602]
[1745373223854,0.004,92648.0,92644.0,0.02604602]
[1745373224084,0.004,92648.0,92644.0,0.02704602]
[1745373224492,0.01479354,92648.0,92645.0,0.0033681]
[1745373224628,0.23066642,92648.0,92645.0,0.0033681]
[1745373225070,0.21587517,92647.0,92645.0,0.0033681]
[1745373225602,0.21587517,92647.0,92646.0,0.0033681]
[1745373226649,0.22187517,92647.0,92646.0,0.0033681]
[1745373227103,0.21687517,92647.0,92646.0,0.0033681]
[1745373227532,0.22187517,92647.0,92646.0,0.001]
[1745373228801,0.42562904,92647.0,92646.0,0.001]
[1745373228994,0.42447822,92647.0,92646.0,0.001]
[1745373229211,0.21587781,92645.0,92644.0,0.00046772]
[1745373229473,0.32533168,92645.0,92644.0,0.00046772]
[1745373229714,0.32418086,92645.0,92644.0,0.00046772]
[1745373229922,0.32318086,92645.0,92644.0,0.00046772]
[1745373230141,0.21588713,92641.0,92640.0,0.25]
[1745373230394,0.324341,92641.0,92640.0,0.25]
[1745373230601,0.32319018,92641.0,92640.0,0.25]
[1745373231915,0.33119018,92641.0,92640.0,0.25]
[1745373232366,0.32719018,92641.0,92640.0,0.25]
[1745373232560,0.33819018,92641.0,92640.0,0.25]
[1745373232972,0.34419018,92641.0,92640.0,0.25]
[1745373235579,0.34419018,92641.0,92640.0,0.27472115]
[1745373235805,0.46231018,92641.0,92640.0,0.27472115]
[1745373236006,0.34419018,92641.0,92640.0,0.25]
[1745373236240,0.46231018,92641.0,92640.0,0.25]
[1745373236465,0.46231018,92641.0,92640.0,0.06653311]
[1745373240890,0.021,92641.0,92640.0,0.06653311]
[1745373241314,0.021,92641.0,92640.0,0.06990169]
[1745373241769,0.00146891,92645.0,92640.0,0.06990169]
[1745373241983,0.00146891,92645.0,92641.0,0.01079435]
[1745373242467,0.00146891,92645.0,92640.0,0.08069616]
[1745373242688,0.00146891,92645.0,92643.0,0.21588247]
[1745373242913,0.00146891,92645.0,92644.0,0.01669934]
[1745373243143,0.00146891,92645.0,92644.0,0.02006792]
[1745373243343,0.00346891,92645.0,92644.0,0.02006792]
[1745373243555,0.00346891,92645.0,92644.0,0.22842543]
[1745373243802,0.00646891,92645.0,92644.0,0.16594643]
[1745373244026,0.00646891,92645.0,92644.0,0.01790943]
[1745373244250,0.00646891,92645.0,92644.0,0.9926368]
[1745373244464,0.01446891,92645.0,92644.0,0.23003943]
[1745373244679,0.01446891,92645.0,92644.0,0.18183943]
[1745373244884,0.01446891,92645.0,92644.0,0.01790943]
[1745373245081,0.00146891,92645.0,92644.0,0.00336858]
[1745373245308,0.00146891,92645.0,92644.0,0.00536858]
[1745373245309,0.00746891,92645.0,92644.0,0.00536858]
[1745373245752,0.00146891,92645.0,92644.0,0.00336858]
[1745373245983,0.00146891,92645.0,92644.0,0.00436858]
[1745373246217,0.00646891,92645.0,92644.0,0.00536858]
[1745373247208,0.00146891,92645.0,92644.0,0.00436858]
[1745373247533,0.00746891,92645.0,92644.0,0.00536858]
[1745373248008,0.00146891,92645.0,92644.0,0.00436858]
[1745373248411,0.00846891,92645.0,92644.0,0.00536858]